[Event "Live Chess"]
[Site "Chess.com"]
[Date "2023.05.21"]
[Round "-"]
[White "Man-Del-Brot"]
[Black "AyannaTang"]
[Result "0-1"]
[WhiteElo "1004"]
[BlackElo "230"]
[TimeControl "300"]
[EndTime "6:00:04 PDT"]
[Termination "AyannaTang won on time"]

1. d4 {[%clk 0:04:56.2]} 1... d5 {[%clk 0:04:57.6]} 2. Nf3 {[%clk 0:04:54.8]}
2... e5 {[%clk 0:04:54.4]} 3. Nxe5 {[%clk 0:04:49.6]} 3... Bd6 {[%clk
0:04:27.3]} 4. Nf3 {[%clk 0:04:44.4]} 4... Nf6 {[%clk 0:04:20.5]} 5. Nc3 {[%clk
0:04:33.2]} 5... Nc6 {[%clk 0:04:17.8]} 6. Bg5 {[%clk 0:04:28]} 6... Bb4 {[%clk
0:04:11]} 7. a3 {[%clk 0:04:17.4]} 7... Bxc3+ {[%clk 0:04:09.6]} 8. bxc3 {[%clk
0:04:16.3]} 8... h6 {[%clk 0:04:07.4]} 9. Bd2 {[%clk 0:03:55.7]} 9... Bf5 {[%clk
0:03:46.3]} 10. h3 {[%clk 0:03:53.7]} 10... Qd6 {[%clk 0:03:39.7]} 11. e3 {[%clk
0:03:52.3]} 11... O-O-O {[%clk 0:03:36.2]} 12. Be2 {[%clk 0:03:46.9]} 12... Ne7
{[%clk 0:03:27.8]} 13. O-O {[%clk 0:03:41.7]} 13... Bg6 {[%clk 0:03:26.1]} 14.
c4 {[%clk 0:03:06.7]} 14... Be4 {[%clk 0:03:22.8]} 15. Ne5 {[%clk 0:03:00.9]}
15... Rhe8 {[%clk 0:03:04.9]} 16. Bb4 {[%clk 0:02:48.9]} 16... Qe6 {[%clk
0:03:00.5]} 17. f4 {[%clk 0:02:30.5]} 17... Qf5 {[%clk 0:02:55.9]} 18. Bxe7
{[%clk 0:02:17.7]} 18... Rxe7 {[%clk 0:02:51.8]} 19. Bd3 {[%clk 0:02:10.4]}
19... h5 {[%clk 0:02:37.6]} 20. Bxe4 {[%clk 0:02:03.2]} 20... Nxe4 {[%clk
0:02:36]} 21. c5 {[%clk 0:01:48.2]} 21... Re6 {[%clk 0:02:32.3]} 22. Qe1 {[%clk
0:01:27]} 22... Rg6 {[%clk 0:02:29.1]} 23. Ra2 {[%clk 0:01:11.7]} 23... Qg5
{[%clk 0:02:27.2]} 24. c4 {[%clk 0:00:47.9]} 24... Qxg2+ {[%clk 0:02:25.3]} 25.
Rxg2 {[%clk 0:00:44.2]} 25... Rxg2+ {[%clk 0:02:22.5]} 26. Kxg2 {[%clk
0:00:42.5]} 26... g5 {[%clk 0:01:56.1]} 27. f5 {[%clk 0:00:36.3]} 27... g4
{[%clk 0:01:47.3]} 28. h4 {[%clk 0:00:33.9]} 28... g3 {[%clk 0:01:45.5]} 29.
cxd5 {[%clk 0:00:31.1]} 29... Rxd5 {[%clk 0:01:42.9]} 30. Nxf7 {[%clk
0:00:12.1]} 30... Rxf5 {[%clk 0:01:39]} 31. Rxf5 {[%clk 0:00:09.7]} 31... Nd6
{[%clk 0:01:32.1]} 32. Rxh5 {[%clk 0:00:07.3]} 32... Nxf7 {[%clk 0:01:30.7]} 33.
Qxg3 {[%clk 0:00:05.4]} 33... b5 {[%clk 0:01:21.8]} 34. Qg8+ {[%clk 0:00:04.2]}
34... Nd8 {[%clk 0:01:19.5]} 35. Rh8 {[%clk 0:00:00.5]} 35... b4 {[%clk
0:01:12.8]} 0-1

[Event "Live Chess"]
[Site "Chess.com"]
[Date "2023.05.21"]
[Round "-"]
[White "omisoc"]
[Black "grillage"]
[Result "1-0"]
[WhiteElo "2177"]
[BlackElo "1791"]
[TimeControl "300"]
[EndTime "6:00:07 PDT"]
[Termination "omisoc won by resignation"]

1. Nf3 {[%clk 0:04:57.9]} 1... Nf6 {[%clk 0:04:57.3]} 2. b3 {[%clk 0:04:53.8]}
2... d5 {[%clk 0:04:54.1]} 3. Bb2 {[%clk 0:04:51.7]} 3... c5 {[%clk 0:04:53.6]}
4. e3 {[%clk 0:04:49.6]} 4... Nc6 {[%clk 0:04:52.7]} 5. d4 {[%clk 0:04:48.8]}
5... Bg4 {[%clk 0:04:51]} 6. Be2 {[%clk 0:04:46.9]} 6... cxd4 {[%clk 0:04:49]}
7. Nxd4 {[%clk 0:04:42.4]} 7... Bxe2 {[%clk 0:04:46.6]} 8. Qxe2 {[%clk
0:04:42.3]} 8... e5 {[%clk 0:04:44.4]} 9. Nxc6 {[%clk 0:04:40.1]} 9... bxc6
{[%clk 0:04:43.1]} 10. Bxe5 {[%clk 0:04:38.9]} 10... Bc5 {[%clk 0:04:38.7]} 11.
O-O {[%clk 0:04:31.9]} 11... O-O {[%clk 0:04:37.6]} 12. Nd2 {[%clk 0:04:19.4]}
12... Re8 {[%clk 0:04:35.7]} 13. Nf3 {[%clk 0:04:16.9]} 13... Ne4 {[%clk
0:04:31.2]} 14. c4 {[%clk 0:04:13.3]} 14... f6 {[%clk 0:03:53.9]} 15. Bd4 {[%clk
0:04:11.3]} 15... Qb6 {[%clk 0:03:43.1]} 16. Bxc5 {[%clk 0:04:04.5]} 16... Qxc5
{[%clk 0:03:41.4]} 17. Rac1 {[%clk 0:04:03.3]} 17... Qd6 {[%clk 0:03:35.1]} 18.
Rfd1 {[%clk 0:03:59.2]} 18... Rac8 {[%clk 0:03:31.4]} 19. Qd3 {[%clk 0:03:52.6]}
19... Nc5 {[%clk 0:03:27.6]} 20. Qc3 {[%clk 0:03:36.4]} 20... Ne4 {[%clk
0:03:24.4]} 21. Qa5 {[%clk 0:03:30.2]} 21... Qe6 {[%clk 0:02:51.9]} 22. Nd4
{[%clk 0:03:19.3]} 22... Qe5 {[%clk 0:02:41.1]} 23. cxd5 {[%clk 0:02:58.8]}
23... Nxf2 {[%clk 0:02:34]} 24. Kxf2 {[%clk 0:02:56.6]} 24... Qxe3+ {[%clk
0:02:32.7]} 25. Kf1 {[%clk 0:02:55.7]} 25... cxd5 {[%clk 0:02:27.8]} 26. Rxc8
{[%clk 0:02:36.5]} 26... Rxc8 {[%clk 0:02:24.9]} 27. Qxd5+ {[%clk 0:02:32.1]}
27... Kh8 {[%clk 0:02:22]} 28. Qe6 {[%clk 0:02:29.4]} 28... Qf4+ {[%clk
0:02:15.9]} 29. Nf3 {[%clk 0:02:25.3]} 1-0

[Event "Live Chess"]
[Site "Chess.com"]
[Date "2023.05.21"]
[Round "-"]
[White "quantum_void"]
[Black "Nazar_777"]
[Result "0-1"]
[WhiteElo "1492"]
[BlackElo "1570"]
[TimeControl "300"]
[EndTime "6:00:26 PDT"]
[Termination "Nazar_777 won by resignation"]

1. e4 {[%clk 0:04:56.4]} 1... e6 {[%clk 0:04:55]} 2. Nc3 {[%clk 0:04:53.5]} 2...
a6 {[%clk 0:04:54.4]} 3. g3 {[%clk 0:04:48.4]} 3... h5 {[%clk 0:04:53.6]} 4. Bg2
{[%clk 0:04:47.7]} 4... c5 {[%clk 0:04:52.7]} 5. Nge2 {[%clk 0:04:45.9]} 5...
Be7 {[%clk 0:04:52.1]} 6. d4 {[%clk 0:04:44.6]} 6... cxd4 {[%clk 0:04:51]} 7.
Nxd4 {[%clk 0:04:43.5]} 7... Nf6 {[%clk 0:04:49.4]} 8. Be3 {[%clk 0:04:23.5]}
8... Nc6 {[%clk 0:04:48]} 9. Qd2 {[%clk 0:04:21.3]} 9... Qc7 {[%clk 0:04:46.1]}
10. O-O-O {[%clk 0:04:18.6]} 10... b5 {[%clk 0:04:44.2]} 11. Kb1 {[%clk
0:04:10.2]} 11... Bb7 {[%clk 0:04:42.9]} 12. Nxc6 {[%clk 0:04:03.2]} 12... Bxc6
{[%clk 0:04:41.3]} 13. f4 {[%clk 0:03:56.6]} 13... Rc8 {[%clk 0:04:38.7]} 14. f5
{[%clk 0:03:52.5]} 14... Ng4 {[%clk 0:04:35.7]} 15. fxe6 {[%clk 0:03:47.1]}
15... dxe6 {[%clk 0:04:34.3]} 16. Bg5 {[%clk 0:03:43.1]} 16... b4 {[%clk
0:04:28.4]} 17. Ne2 {[%clk 0:03:38.1]} 17... Nf2 {[%clk 0:04:23.5]} 18. Rdf1
{[%clk 0:03:32.5]} 18... Nxh1 {[%clk 0:04:21.2]} 19. Bxh1 {[%clk 0:03:31]} 19...
g6 {[%clk 0:04:19.6]} 20. Nd4 {[%clk 0:03:24.9]} 20... Bxg5 {[%clk 0:04:17]} 21.
Qxg5 {[%clk 0:03:23.5]} 21... Rf8 {[%clk 0:04:14.8]} 22. Qf6 {[%clk 0:03:02.1]}
22... Bb5 {[%clk 0:04:12.2]} 23. Rf2 {[%clk 0:02:57.2]} 23... Rd8 {[%clk
0:04:00.5]} 24. Nxe6 {[%clk 0:02:55.9]} 0-1

[Event "Live Chess"]
[Site "Chess.com"]
[Date "2023.05.21"]
[Round "-"]
[White "ProfPoisson"]
[Black "Duke_of_Bebington"]
[Result "0-1"]
[WhiteElo "1213"]
[BlackElo "1569"]
[TimeControl "300"]
[EndTime "6:00:27 PDT"]
[Termination "Duke_of_Bebington won on time"]

1. e4 {[%clk 0:04:55.2]} 1... e5 {[%clk 0:04:58.8]} 2. Nf3 {[%clk 0:04:52.2]}
2... Nf6 {[%clk 0:04:58.2]} 3. Nxe5 {[%clk 0:04:49.4]} 3... d6 {[%clk
0:04:56.3]} 4. Nxf7 {[%clk 0:04:46.9]} 4... Kxf7 {[%clk 0:04:55.1]} 5. Nc3
{[%clk 0:04:45.5]} 5... Be6 {[%clk 0:04:47.6]} 6. d4 {[%clk 0:04:44.2]} 6... Be7
{[%clk 0:04:37.7]} 7. d5 {[%clk 0:04:38.3]} 7... Bd7 {[%clk 0:04:36.3]} 8. Qf3
{[%clk 0:04:24.5]} 8... Rf8 {[%clk 0:04:32.6]} 9. h4 {[%clk 0:04:08.9]} 9... Kg8
{[%clk 0:04:25.9]} 10. h5 {[%clk 0:04:07.2]} 10... Bg4 {[%clk 0:04:24.4]} 11.
Qg3 {[%clk 0:04:01.6]} 11... Bxh5 {[%clk 0:04:21.2]} 12. Be2 {[%clk 0:03:58.3]}
12... Bg6 {[%clk 0:04:19.8]} 13. f4 {[%clk 0:03:43.7]} 13... Nxe4 {[%clk
0:04:12.6]} 14. Nxe4 {[%clk 0:03:39.8]} 14... Bxe4 {[%clk 0:04:12.5]} 15. f5
{[%clk 0:03:29]} 15... Bxf5 {[%clk 0:04:06.5]} 16. Bd3 {[%clk 0:03:20.4]} 16...
Bxd3 {[%clk 0:03:55.8]} 17. Qxd3 {[%clk 0:03:05.9]} 17... Bh4+ {[%clk
0:03:44.2]} 18. g3 {[%clk 0:02:55.5]} 18... Bxg3+ {[%clk 0:03:30.5]} 19. Qxg3
{[%clk 0:02:51.9]} 19... Qe7+ {[%clk 0:03:28]} 20. Be3 {[%clk 0:02:49.1]} 20...
Re8 {[%clk 0:03:22.2]} 21. Kd2 {[%clk 0:02:42.2]} 21... Nd7 {[%clk 0:03:19.5]}
22. Rae1 {[%clk 0:02:38.9]} 22... Ne5 {[%clk 0:03:17.7]} 23. Kc1 {[%clk
0:02:08.3]} 23... Ng6 {[%clk 0:02:57]} 24. Bd4 {[%clk 0:01:50.8]} 24... Qf7
{[%clk 0:02:52.7]} 25. Rhf1 {[%clk 0:01:28]} 25... Qxd5 {[%clk 0:02:45.8]} 26.
Bc3 {[%clk 0:01:06.9]} 26... Rxe1+ {[%clk 0:02:33.1]} 27. Rxe1 {[%clk
0:00:59.4]} 27... Rf8 {[%clk 0:02:30.7]} 28. Qg4 {[%clk 0:00:37.8]} 28... Qf5
{[%clk 0:02:12.7]} 29. Qc4+ {[%clk 0:00:34.2]} 29... Qf7 {[%clk 0:02:05.3]} 30.
Qxf7+ {[%clk 0:00:21.3]} 30... Rxf7 {[%clk 0:02:00.7]} 31. Re8+ {[%clk
0:00:20.8]} 31... Rf8 {[%clk 0:01:57.4]} 32. Rxf8+ {[%clk 0:00:19.7]} 32... Nxf8
{[%clk 0:01:56.5]} 33. Kd2 {[%clk 0:00:18.3]} 33... Ne6 {[%clk 0:01:54.9]} 34.
Ke3 {[%clk 0:00:18.2]} 34... h6 {[%clk 0:01:54.2]} 35. Ke4 {[%clk 0:00:13.9]}
35... g5 {[%clk 0:01:53.4]} 36. Kf5 {[%clk 0:00:12.3]} 36... Nf4 {[%clk
0:01:51.6]} 37. Bf6 {[%clk 0:00:09.2]} 37... Kf7 {[%clk 0:01:47.9]} 38. Bd8
{[%clk 0:00:06.7]} 38... Ne6 {[%clk 0:01:45.3]} 39. Bxc7 {[%clk 0:00:01.8]}
39... Nxc7 {[%clk 0:01:43.7]} 0-1

[Event "Live Chess"]
[Site "Chess.com"]
[Date "2023.05.21"]
[Round "-"]
[White "WelshTiger"]
[Black "Vitalii18a"]
[Result "1-0"]
[WhiteElo "2302"]
[BlackElo "1127"]
[TimeControl "300"]
[EndTime "6:00:44 PDT"]
[Termination "WelshTiger won by checkmate"]

1. e4 {[%clk 0:04:58.4]} 1... e5 {[%clk 0:04:58.2]} 2. Nf3 {[%clk 0:04:57]} 2...
d6 {[%clk 0:04:57.1]} 3. d4 {[%clk 0:04:56.5]} 3... exd4 {[%clk 0:04:55.8]} 4.
Nxd4 {[%clk 0:04:55.4]} 4... Be7 {[%clk 0:04:55.2]} 5. Nc3 {[%clk 0:04:54.3]}
5... Nf6 {[%clk 0:04:50.7]} 6. Be2 {[%clk 0:04:53.7]} 6... c6 {[%clk 0:04:43.9]}
7. a4 {[%clk 0:04:50.8]} 7... O-O {[%clk 0:04:41.2]} 8. O-O {[%clk 0:04:49.5]}
8... Bd7 {[%clk 0:04:39.3]} 9. f4 {[%clk 0:04:45.6]} 9... h6 {[%clk 0:04:33]}
10. Bf3 {[%clk 0:04:44.9]} 10... Nh7 {[%clk 0:04:31.6]} 11. Be3 {[%clk 0:04:36]}
11... c5 {[%clk 0:04:22.7]} 12. Ndb5 {[%clk 0:04:34.3]} 12... a6 {[%clk
0:04:16.8]} 13. Nxd6 {[%clk 0:04:29.7]} 13... Bxd6 {[%clk 0:04:14.7]} 14. Qxd6
{[%clk 0:04:28.1]} 14... Nc6 {[%clk 0:04:11.7]} 15. Rad1 {[%clk 0:04:26.1]}
15... Nd4 {[%clk 0:04:07]} 16. Bxd4 {[%clk 0:04:14.8]} 16... cxd4 {[%clk
0:04:05.1]} 17. Rxd4 {[%clk 0:04:14]} 17... Bc6 {[%clk 0:04:01.8]} 18. Qxd8
{[%clk 0:04:12]} 18... Raxd8 {[%clk 0:03:59.9]} 19. Rfd1 {[%clk 0:04:11.7]}
19... Rxd4 {[%clk 0:03:54]} 20. Rxd4 {[%clk 0:04:10.7]} 20... Nf6 {[%clk
0:03:49]} 21. e5 {[%clk 0:04:07.9]} 21... Bxf3 {[%clk 0:03:32.6]} 22. exf6
{[%clk 0:04:05.2]} 22... Bc6 {[%clk 0:03:23.5]} 23. fxg7 {[%clk 0:04:04]} 23...
Kxg7 {[%clk 0:03:22.3]} 24. Kf2 {[%clk 0:03:59]} 24... Kg6 {[%clk 0:03:12.4]}
25. g4 {[%clk 0:03:57.6]} 25... f5 {[%clk 0:03:08.4]} 26. Rd6+ {[%clk
0:03:55.6]} 26... Kg7 {[%clk 0:03:02.8]} 27. Kg3 {[%clk 0:03:53]} 27... fxg4
{[%clk 0:02:59.2]} 28. Kxg4 {[%clk 0:03:52.4]} 28... Kh7 {[%clk 0:02:53.7]} 29.
b4 {[%clk 0:03:49.5]} 29... Rg8+ {[%clk 0:02:52.1]} 30. Kf5 {[%clk 0:03:48.4]}
30... Bf3 {[%clk 0:02:43.1]} 31. Ne4 {[%clk 0:03:40.5]} 31... Rf8+ {[%clk
0:02:39]} 32. Nf6+ {[%clk 0:03:37.7]} 32... Kg7 {[%clk 0:02:34.3]} 33. Rd7+
{[%clk 0:03:36.3]} 33... Kh8 {[%clk 0:02:25.2]} 34. Rh7# {[%clk 0:03:34.9]} 1-0

[Event "Live Chess"]
[Site "Chess.com"]
[Date "2023.05.21"]
[Round "-"]
[White "luckywookie"]
[Black "Leonid_Starozhilov"]
[Result "0-1"]
[WhiteElo "805"]
[BlackElo "2638"]
[TimeControl "300"]
[EndTime "6:00:52 PDT"]
[Termination "Leonid_Starozhilov won by checkmate"]

1. e4 {[%clk 0:04:57.9]} 1... c5 {[%clk 0:04:57.4]} 2. c3 {[%clk 0:04:55.3]}
2... Nf6 {[%clk 0:04:56.5]} 3. e5 {[%clk 0:04:53.7]} 3... Nd5 {[%clk 0:04:55.9]}
4. Nf3 {[%clk 0:04:52.9]} 4... Nc6 {[%clk 0:04:54.7]} 5. Bc4 {[%clk 0:04:51.6]}
5... Nb6 {[%clk 0:04:52.1]} 6. Bb3 {[%clk 0:04:49.9]} 6... c4 {[%clk 0:04:51.3]}
7. Bc2 {[%clk 0:04:48.4]} 7... d6 {[%clk 0:04:50.4]} 8. O-O {[%clk 0:04:46.3]}
8... dxe5 {[%clk 0:04:49.2]} 9. Re1 {[%clk 0:04:44.5]} 9... Bg4 {[%clk
0:04:46.1]} 10. h3 {[%clk 0:04:42.2]} 10... Bxf3 {[%clk 0:04:42.8]} 11. Qxf3
{[%clk 0:04:38.7]} 11... e6 {[%clk 0:04:42.2]} 12. a4 {[%clk 0:04:36]} 12... Bc5
{[%clk 0:04:37.1]} 13. b4 {[%clk 0:04:22.7]} 13... cxb3 {[%clk 0:04:32.1]} 14.
Bxb3 {[%clk 0:04:19.7]} 14... O-O {[%clk 0:04:31.3]} 15. a5 {[%clk 0:03:51.4]}
15... Nd5 {[%clk 0:04:28.8]} 16. c4 {[%clk 0:03:36.5]} 16... Nd4 {[%clk
0:04:25.3]} 17. Qh5 {[%clk 0:03:22.9]} 17... Nxb3 {[%clk 0:04:21.1]} 18. cxd5
{[%clk 0:03:19.4]} 18... Nxa1 {[%clk 0:04:18.8]} 19. d3 {[%clk 0:03:14.1]} 19...
Bd4 {[%clk 0:04:11.6]} 20. Bg5 {[%clk 0:03:00.4]} 20... f6 {[%clk 0:04:09.7]}
21. Be3 {[%clk 0:02:55.4]} 21... Qxd5 {[%clk 0:04:07.5]} 22. Bxd4 {[%clk
0:02:52]} 22... Qxd4 {[%clk 0:04:06.1]} 23. Re4 {[%clk 0:02:49.5]} 23... Qxd3
{[%clk 0:04:04.6]} 24. Rh4 {[%clk 0:02:45]} 24... Qxb1+ {[%clk 0:04:03.6]} 25.
Kh2 {[%clk 0:02:43.5]} 25... g5 {[%clk 0:04:01.7]} 26. Qxh7+ {[%clk 0:02:41.2]}
26... Qxh7 {[%clk 0:04:00.7]} 27. Rxh7 {[%clk 0:02:39.8]} 27... Kxh7 {[%clk
0:04:00.6]} 28. g3 {[%clk 0:02:37.9]} 28... a6 {[%clk 0:03:59.9]} 29. h4 {[%clk
0:02:36.8]} 29... Nb3 {[%clk 0:03:59.8]} 30. hxg5 {[%clk 0:02:35]} 30... Nxa5
{[%clk 0:03:59.7]} 31. gxf6 {[%clk 0:02:32.7]} 31... Kg6 {[%clk 0:03:58.2]} 32.
g4 {[%clk 0:02:30.4]} 32... Kxf6 {[%clk 0:03:56.9]} 33. f3 {[%clk 0:02:29.7]}
33... Kg5 {[%clk 0:03:56.1]} 34. Kg3 {[%clk 0:02:29]} 34... Nc4 {[%clk
0:03:55.7]} 35. f4+ {[%clk 0:02:28.2]} 35... exf4+ {[%clk 0:03:54.9]} 36. Kf3
{[%clk 0:02:27.2]} 36... Nd6 {[%clk 0:03:53.4]} 37. Kg2 {[%clk 0:02:25.4]} 37...
Kxg4 {[%clk 0:03:53]} 38. Kf2 {[%clk 0:02:24.6]} 38... e5 {[%clk 0:03:52.9]} 39.
Kg2 {[%clk 0:02:23.8]} 39... e4 {[%clk 0:03:52.8]} 40. Kf2 {[%clk 0:02:23]}
40... b5 {[%clk 0:03:52.7]} 41. Ke2 {[%clk 0:02:22.3]} 41... b4 {[%clk
0:03:52.6]} 42. Kf2 {[%clk 0:02:21.4]} 42... a5 {[%clk 0:03:52.5]} 43. Ke2
{[%clk 0:02:20.7]} 43... a4 {[%clk 0:03:52.4]} 44. Kf2 {[%clk 0:02:19.9]} 44...
a3 {[%clk 0:03:52.3]} 45. Ke2 {[%clk 0:02:19.3]} 45... b3 {[%clk 0:03:52.2]} 46.
Kf2 {[%clk 0:02:18.6]} 46... a2 {[%clk 0:03:51.1]} 47. Ke2 {[%clk 0:02:17.8]}
47... b2 {[%clk 0:03:51]} 48. Kf2 {[%clk 0:02:16.8]} 48... a1=R {[%clk
0:03:49.9]} 49. Kg2 {[%clk 0:02:15.9]} 49... b1=R {[%clk 0:03:48.5]} 50. Kf2
{[%clk 0:02:14.9]} 50... Rfb8 {[%clk 0:03:46.4]} 51. Ke2 {[%clk 0:02:13.7]}
51... Nc4 {[%clk 0:03:43.1]} 52. Kf2 {[%clk 0:02:12]} 52... R8a3 {[%clk
0:03:41.1]} 53. Ke2 {[%clk 0:02:09.8]} 53... f3+ {[%clk 0:03:38.5]} 54. Kf2
{[%clk 0:02:08.7]} 54... e3# {[%clk 0:03:37.9]} 0-1

[Event "Live Chess"]
[Site "Chess.com"]
[Date "2023.05.21"]
[Round "-"]
[White "FailsGambits"]
[Black "Brooms1989"]
[Result "1/2-1/2"]
[WhiteElo "1331"]
[BlackElo "1152"]
[TimeControl "300"]
[EndTime "6:01:02 PDT"]
[Termination "Game drawn by repetition"]

1. e4 {[%clk 0:04:59]} 1... e5 {[%clk 0:04:58.1]} 2. Nf3 {[%clk 0:04:56.9]} 2...
Nc6 {[%clk 0:04:56.2]} 3. d4 {[%clk 0:04:56.2]} 3... exd4 {[%clk 0:04:55.1]} 4.
Nxd4 {[%clk 0:04:56.1]} 4... Nf6 {[%clk 0:04:54.1]} 5. Bg5 {[%clk 0:04:46.4]}
5... h6 {[%clk 0:04:50.3]} 6. Nxc6 {[%clk 0:04:42.8]} 6... bxc6 {[%clk
0:04:46.3]} 7. Bxf6 {[%clk 0:04:36.3]} 7... Qxf6 {[%clk 0:04:46.2]} 8. Nc3
{[%clk 0:04:27]} 8... Bc5 {[%clk 0:04:43.8]} 9. Qe2 {[%clk 0:04:19.4]} 9... O-O
{[%clk 0:04:30.9]} 10. O-O-O {[%clk 0:04:16.5]} 10... Qxf2 {[%clk 0:04:23.2]}
11. Qc4 {[%clk 0:03:56.6]} 11... Be3+ {[%clk 0:04:09.8]} 12. Kb1 {[%clk
0:03:53.7]} 12... Rb8 {[%clk 0:03:47.9]} 13. g3 {[%clk 0:02:46.1]} 13... Qf6
{[%clk 0:03:19.1]} 14. Bd3 {[%clk 0:02:39.4]} 14... Qe6 {[%clk 0:03:06.9]} 15.
Qxe6 {[%clk 0:02:13.4]} 15... fxe6 {[%clk 0:03:06.8]} 16. Rhf1 {[%clk
0:02:12.1]} 16... Bb7 {[%clk 0:02:58.2]} 17. Ne2 {[%clk 0:01:41.6]} 17... d5
{[%clk 0:02:39.4]} 18. Nf4 {[%clk 0:01:34.5]} 18... Bxf4 {[%clk 0:02:34]} 19.
gxf4 {[%clk 0:01:34.4]} 19... dxe4 {[%clk 0:02:28.5]} 20. Bxe4 {[%clk 0:01:32]}
20... c5 {[%clk 0:02:26.1]} 21. Bxb7 {[%clk 0:01:16.7]} 21... Rxb7 {[%clk
0:02:26]} 22. Rd7 {[%clk 0:01:11.1]} 22... c4 {[%clk 0:02:20]} 23. c3 {[%clk
0:01:02.4]} 23... Rfb8 {[%clk 0:02:17.5]} 24. Rf2 {[%clk 0:00:57.3]} 24... c5
{[%clk 0:02:14]} 25. Rd6 {[%clk 0:00:50.9]} 25... Rb6 {[%clk 0:02:10.9]} 26. Rd7
{[%clk 0:00:49.2]} 26... R6b7 {[%clk 0:02:09.7]} 27. Rd6 {[%clk 0:00:47.4]}
27... Rb6 {[%clk 0:02:09.1]} 28. Rd7 {[%clk 0:00:38.6]} 28... R6b7 {[%clk
0:02:08.2]} 1/2-1/2

[Event "Live Chess"]
[Site "Chess.com"]
[Date "2023.05.21"]
[Round "-"]
[White "Conradical12"]
[Black "SavagePawn7"]
[Result "1-0"]
[WhiteElo "1584"]
[BlackElo "770"]
[TimeControl "300"]
[EndTime "6:01:03 PDT"]
[Termination "Conradical12 won by resignation"]

1. e4 {[%clk 0:04:58.4]} 1... d5 {[%clk 0:04:55.7]} 2. exd5 {[%clk 0:04:56.6]}
2... Nf6 {[%clk 0:04:53.6]} 3. Nf3 {[%clk 0:04:55]} 3... Nxd5 {[%clk 0:04:52]}
4. Bc4 {[%clk 0:04:54.3]} 4... e6 {[%clk 0:04:47.3]} 5. O-O {[%clk 0:04:53.3]}
5... Bd6 {[%clk 0:04:39.7]} 6. Re1 {[%clk 0:04:46.3]} 6... O-O {[%clk 0:04:35]}
7. Bxd5 {[%clk 0:04:41.6]} 7... exd5 {[%clk 0:04:30.9]} 8. Nc3 {[%clk
0:04:38.7]} 8... c6 {[%clk 0:04:28]} 9. d3 {[%clk 0:04:33.7]} 9... Re8 {[%clk
0:04:25.1]} 10. Rxe8+ {[%clk 0:04:24.1]} 10... Qxe8 {[%clk 0:04:23.8]} 11. Bg5
{[%clk 0:04:21.2]} 11... f6 {[%clk 0:04:09.9]} 12. Be3 {[%clk 0:04:15.1]} 12...
Bf5 {[%clk 0:04:02.2]} 13. Qd2 {[%clk 0:04:12.5]} 13... Nd7 {[%clk 0:04:00]} 14.
Re1 {[%clk 0:04:07.9]} 14... Qg6 {[%clk 0:03:49.4]} 15. Nh4 {[%clk 0:04:00.3]}
15... Qh5 {[%clk 0:03:44.9]} 16. Nxf5 {[%clk 0:03:57.7]} 16... Qxf5 {[%clk
0:03:43.7]} 17. f3 {[%clk 0:03:41.1]} 17... Qe5 {[%clk 0:03:33.8]} 18. g3 {[%clk
0:03:12.3]} 18... Re8 {[%clk 0:03:20.5]} 19. d4 {[%clk 0:03:07.3]} 19... Qh5
{[%clk 0:03:16.1]} 20. a3 {[%clk 0:02:59.8]} 20... c5 {[%clk 0:03:06.7]} 21.
dxc5 {[%clk 0:02:54.3]} 21... Bxc5 {[%clk 0:03:01.3]} 22. Bxc5 {[%clk
0:02:52.7]} 22... Rxe1+ {[%clk 0:02:46.7]} 23. Qxe1 {[%clk 0:02:50.6]} 23...
Nxc5 {[%clk 0:02:41.6]} 24. Nxd5 {[%clk 0:02:38.8]} 24... Kf7 {[%clk 0:02:23.7]}
25. Qe7+ {[%clk 0:02:27.8]} 25... Kg6 {[%clk 0:02:21]} 26. Nf4+ {[%clk
0:02:25.8]} 26... Kh6 {[%clk 0:02:13.6]} 27. Nxh5 {[%clk 0:02:22.5]} 1-0

[Event "Live Chess"]
[Site "Chess.com"]
[Date "2023.05.21"]
[Round "-"]
[White "viktorskliarov"]
[Black "LiamClery2020"]
[Result "1-0"]
[WhiteElo "2649"]
[BlackElo "1973"]
[TimeControl "300"]
[EndTime "6:01:03 PDT"]
[Termination "viktorskliarov won by resignation"]

1. e4 {[%clk 0:04:56.3]} 1... Nf6 {[%clk 0:04:56.3]} 2. Nc3 {[%clk 0:04:53.4]}
2... e5 {[%clk 0:04:53.6]} 3. Bc4 {[%clk 0:04:52.3]} 3... Nc6 {[%clk 0:04:52.4]}
4. d3 {[%clk 0:04:50.7]} 4... Bb4 {[%clk 0:04:49.6]} 5. Bg5 {[%clk 0:04:47.5]}
5... d6 {[%clk 0:04:45]} 6. Ne2 {[%clk 0:04:43.1]} 6... O-O {[%clk 0:04:31.7]}
7. a3 {[%clk 0:04:41.4]} 7... Bxc3+ {[%clk 0:04:29]} 8. Nxc3 {[%clk 0:04:40]}
8... Be6 {[%clk 0:04:26.6]} 9. Nd5 {[%clk 0:04:38.6]} 9... Bxd5 {[%clk
0:04:25.1]} 10. Bxd5 {[%clk 0:04:37.1]} 10... h6 {[%clk 0:04:22.1]} 11. h4
{[%clk 0:04:11.6]} 11... Qe7 {[%clk 0:03:57.8]} 12. Ba2 {[%clk 0:03:56.7]} 12...
Nd4 {[%clk 0:03:43.3]} 13. Be3 {[%clk 0:03:49.2]} 13... Nc6 {[%clk 0:03:33.8]}
14. g4 {[%clk 0:03:18]} 14... Rad8 {[%clk 0:03:23.2]} 15. g5 {[%clk 0:03:16.2]}
15... Nd7 {[%clk 0:03:20.7]} 16. Qh5 {[%clk 0:03:11.6]} 16... Nd4 {[%clk
0:03:17.5]} 17. Bxd4 {[%clk 0:03:04.2]} 17... exd4 {[%clk 0:03:16.2]} 18. gxh6
{[%clk 0:03:02.5]} 18... Qf6 {[%clk 0:03:14.5]} 19. Rg1 {[%clk 0:02:53.7]} 19...
g6 {[%clk 0:03:12.7]} 20. Rxg6+ {[%clk 0:02:51]} 1-0